bitfinex/quotes_SOLUSD_20241123
["timestamp","ask_amount","ask_price","bid_price","bid_amount"]
[1732360077754,6.5724,255.89,255.8,3.911]
[1732360079059,44.90265193,255.88,255.8,3.911]
[1732360079250,5.31903123,255.86,255.8,3.911]
[1732360079438,23.9892207,255.85,255.8,3.911]
[1732360080262,15.5944,255.88,255.8,3.911]
[1732360080430,15.8067367,255.88,255.8,3.911]
[1732360080852,15.5944,255.88,255.8,3.911]
[1732360081855,15.8067367,255.88,255.8,3.911]
[1732360082440,15.5944,255.88,255.8,3.911]
[1732360085565,15.5944,255.88,255.81,4.84421775]
[1732360085766,15.5944,255.88,255.81,24.84421775]
[1732360089164,16.0114,255.94,255.82,20.58613131]
[1732360089656,16.0114,255.94,255.82,20.0]
[1732360089854,16.0114,255.94,255.81,4.84421775]
[1732360089855,16.0114,255.94,255.81,24.84421775]
[1732360090253,16.0114,255.94,255.81,25.43031936]
[1732360090654,16.0114,255.94,255.82,23.776884]
[1732360090865,16.0114,255.94,255.83,20.0]
[1732360091047,16.0114,255.94,255.83,20.58602056]
[1732360091362,16.0114,255.94,255.83,20.0]
[1732360091954,16.0114,255.94,255.8,3.911]
[1732360092158,16.2237367,255.94,255.8,3.911]
[1732360093249,16.2237367,255.94,255.81,20.0]
[1732360093458,21.54276793,255.94,255.81,20.0]
[1732360093855,21.54276793,255.94,255.8,3.911]
[1732360095658,16.0114,255.94,255.8,12.63821775]
[1732360095856,16.0114,255.94,255.81,25.43033619]
[1732360096460,16.0114,255.94,255.81,24.84421775]
[1732360096773,16.0114,255.94,255.81,28.72721775]
[1732360097064,16.0114,255.94,255.82,0.58606517]
[1732360098753,16.0114,255.94,255.81,24.84421775]
[1732360101665,0.2123367,255.93,255.81,24.84421775]
[1732360103474,16.0114,255.94,255.81,24.84421775]
[1732360105073,16.2237367,255.94,255.81,24.84421775]
[1732360105371,16.2237367,255.94,255.81,4.84421775]
[1732360105672,16.2237367,255.94,255.8,3.911]
[1732360107260,16.0114,255.94,255.81,20.0]
[1732360107570,16.0114,255.94,255.81,20.58612579]
[1732360108169,16.0114,255.94,255.82,3.883]
[1732360109655,16.2237367,255.94,255.82,3.883]
[1732360113174,16.021255,255.94,255.82,3.883]
[1732360113347,15.8089183,255.94,255.82,3.883]
[1732360113976,16.021255,255.94,255.82,3.883]
[1732360115874,15.8089183,255.94,255.82,3.883]
[1732360116184,16.021255,255.94,255.81,20.0]
[1732360119552,16.021255,255.94,255.8,8.75521775]
[1732360119553,16.021255,255.94,255.8,3.911]
[1732360125453,16.021255,255.94,255.8,7.794]
[1732360125654,16.021255,255.94,255.81,20.0]
[1732360126664,15.8089183,255.94,255.82,0.58616342]
[1732360127474,15.8089183,255.94,255.81,3.883]
[1732360127671,15.8089183,255.94,255.81,23.883]
[1732360128071,15.8089183,255.94,255.82,23.776884]
[1732360128277,15.8089183,255.94,255.83,23.883]
[1732360131783,15.8089183,255.94,255.8,23.911]
[1732360132660,16.021255,255.94,255.8,23.911]
[1732360132873,15.8089183,255.94,255.81,23.883]
[1732360136669,15.8089183,255.94,255.84,3.883]
[1732360137275,15.8089183,255.94,255.83,20.0]
[1732360137479,15.8089183,255.94,255.84,0.58605892]
[1732360137698,15.8089183,255.94,255.83,20.0]
[1732360138792,15.8089183,255.94,255.85,20.0]
[1732360147780,15.8089183,255.94,255.85,23.776884]
[1732360147981,15.8089183,255.94,255.86,20.0]
[1732360148587,15.8089183,255.94,255.83,6.07952103]
[1732360148588,15.8089183,255.94,255.84,20.0]
[1732360149973,6.3929,255.93,255.84,20.0]
[1732360150172,15.7593367,255.92,255.8,9.99052103]
[1732360150773,15.7593367,255.92,255.8,3.911]
[1732360152194,15.547,255.92,255.8,23.911]
[1732360152399,15.547,255.92,255.81,23.883]
[1732360153480,15.7593367,255.92,255.8,23.911]
[1732360154101,21.07836793,255.92,255.8,23.911]
[1732360154278,16.2293,255.91,255.8,3.911]
[1732360154600,0.2123367,255.9,255.8,3.911]
[1732360156300,16.2293,255.89,255.8,3.911]
[1732360156491,6.6403367,255.88,255.8,3.911]
[1732360158207,6.6403367,255.88,255.81,20.0]
[1732360159181,6.6403367,255.88,255.8,3.911]
[1732360161706,6.428,255.88,255.8,3.911]
[1732360165083,6.428,255.88,255.8,23.911]
[1732360165284,6.428,255.88,255.8,3.911]
[1732360167712,16.2293,255.89,255.8,3.911]
[1732360168597,16.2293,255.89,255.81,0.58612696]
[1732360169709,16.2293,255.89,255.81,24.46912696]
[1732360169894,16.2293,255.89,255.81,20.0]
[1732360170325,16.2293,255.89,255.81,23.883]
[1732360170797,16.2293,255.89,255.82,23.776884]
[1732360171312,16.2293,255.89,255.83,20.0]
[1732360175218,6.551,255.94,255.83,20.0]
[1732360175219,6.551,255.94,255.83,20.58614495]
[1732360175420,6.551,255.94,255.83,20.0]
[1732360177322,6.551,255.94,255.83,23.883]
[1732360181021,6.551,255.94,255.84,23.776884]
[1732360181230,6.551,255.94,255.85,20.0]
[1732360181419,6.551,255.94,255.86,23.776884]
[1732360181726,6.551,255.94,255.87,20.0]
[1732360197635,6.551,255.94,255.82,23.883]
[1732360202130,6.551,255.94,255.85,23.776884]
[1732360202529,6.551,255.94,255.86,20.0]
[1732360203245,15.8511,255.95,255.86,20.0]
[1732360208527,15.8511,255.95,255.88,20.0]
[1732360209147,15.8511,255.95,255.86,20.0]
[1732360209329,15.8511,255.95,255.87,23.776884]
[1732360209525,15.8511,255.95,255.88,20.0]
[1732360215045,15.562361,256.02,255.9,20.0]
[1732360215258,15.1083,256.04,255.94,20.0]
[1732360215556,15.1083,256.04,255.95,23.776884]
[1732360215756,15.3206367,256.04,255.95,23.776884]
[1732360215924,15.3206367,256.04,255.96,20.0]
[1732360216131,15.1083,256.04,255.96,20.0]
[1732360217737,0.2123367,256.03,255.9,20.0]
[1732360218156,15.1083,256.01,255.9,20.0]
[1732360218330,0.2123367,256.0,255.84,20.0]
[1732360218528,0.2123367,256.0,255.84,25.54791991]
[1732360218838,0.2123367,256.0,255.85,3.883]
[1732360219555,0.2123367,256.0,255.85,9.43091991]
[1732360219745,15.1083,255.99,255.86,20.0]
[1732360219929,0.2123367,255.98,255.86,20.0]
[1732360220749,6.2689,255.97,255.85,5.54791991]
[1732360220953,15.7549367,255.96,255.85,5.54791991]
[1732360221533,5.31903123,255.95,255.85,5.54791991]
[1732360221748,15.5426,255.93,255.81,4.84414564]
[1732360221941,0.2123367,255.92,255.81,4.84414564]
[1732360222643,0.2123367,255.92,255.81,30.39206555]
[1732360223353,0.2123367,255.92,255.83,20.0]
[1732360224649,15.7549367,255.92,255.83,20.0]
[1732360224835,15.5426,255.92,255.83,20.0]
[1732360225041,0.2123367,255.92,255.83,20.0]
[1732360226340,0.2123367,255.92,255.82,23.776884]
[1732360226739,0.2123367,255.92,255.83,20.0]
[1732360227636,31.0852,255.93,255.83,20.0]
[1732360228240,0.2123367,255.92,255.83,20.0]
[1732360228441,0.2123367,255.92,255.84,3.883]
[1732360228650,15.5426,255.93,255.84,3.883]
[1732360229150,0.2123367,255.92,255.84,3.883]
[1732360229528,0.2123367,255.92,255.83,20.0]
[1732360230057,0.2123367,255.92,255.81,24.84414564]
[1732360230351,0.2123367,255.92,255.8,3.911]
[1732360233464,6.2675,255.91,255.8,3.911]
[1732360233761,0.2123367,255.9,255.8,3.911]
[1732360236340,0.2123367,255.9,255.81,20.0]
[1732360237390,0.2123367,255.9,255.81,25.0796288]
[1732360239158,6.2675,255.91,255.83,20.0]
[1732360241042,0.2123367,255.9,255.82,20.0]
[1732360241241,0.2123367,255.9,255.81,23.776884]
[1732360241644,0.2123367,255.9,255.82,20.0]
[1732360242260,0.2123367,255.9,255.8,3.911]
[1732360247166,0.2123367,255.9,255.8,23.911]
[1732360247963,0.2123367,255.9,255.8,3.911]
[1732360248969,0.2123367,255.9,255.81,23.883]
[1732360256666,0.2123367,255.9,255.81,3.883]
[1732360257178,0.2123367,255.9,255.81,23.883]
[1732360257560,0.2123367,255.9,255.8,3.911]
[1732360257759,15.9057,255.89,255.8,3.911]
[1732360257960,0.2123367,255.88,255.8,3.911]
[1732360258762,0.2123367,255.88,255.81,20.0]
[1732360258975,0.2123367,255.88,255.8,3.911]
[1732360260375,15.568469,255.87,255.8,3.911]
[1732360260586,0.2123367,255.86,255.8,3.911]
[1732360262370,15.1086,255.85,255.8,3.911]
[1732360262562,0.2123367,255.84,255.8,3.911]
[1732360268888,15.1086,255.85,255.8,3.911]
[1732360279096,15.1086,255.85,255.81,20.0]
[1732360279596,15.1086,255.85,255.8,3.911]
[1732360281289,0.2123367,255.84,255.8,3.911]
[1732360282093,15.1086,255.85,255.8,3.911]
[1732360288989,15.1086,255.85,255.81,20.0]
[1732360289601,15.1086,255.85,255.8,3.911]
[1732360290498,15.1086,255.85,255.81,20.0]
[1732360291002,21.4654,255.91,255.81,20.0]
[1732360291186,21.4654,255.91,255.8,3.911]
[1732360291504,0.2123367,255.96,255.81,20.0]
[1732360291800,0.2123367,255.96,255.83,23.886]
[1732360292496,0.2123367,255.97,255.84,23.886]
[1732360293179,0.2123367,255.97,255.83,23.886]
[1732360294300,0.2123367,255.97,255.82,23.886]
[1732360294501,0.2123367,255.97,255.82,8.9656288]
[1732360294700,0.2123367,255.97,255.84,3.886]
[1732360300310,0.2123367,255.97,255.83,20.0]
[1732360300809,0.2123367,255.97,255.84,3.886]
[1732360311196,0.2123367,255.97,255.83,20.0]
[1732360312519,0.2123367,255.97,255.84,3.886]
[1732360320015,0.2123367,255.97,255.83,20.0]
[1732360320200,23.9892207,255.97,255.83,20.0]
[1732360320400,23.9892207,255.97,255.82,5.0796288]
[1732360320401,15.3451,255.96,255.82,5.0796288]
[1732360320604,23.9892207,255.95,255.8,3.911]
[1732360320807,23.9892207,255.95,255.8,8.9906288]
[1732360321307,0.2123367,255.95,255.8,8.9906288]
[1732360321623,0.2123367,255.95,255.81,5.0796288]
[1732360321803,15.3451,255.96,255.83,20.0]
[1732360322002,15.3451,255.96,255.83,25.0796288]
[1732360322225,15.3451,255.96,255.84,3.886]
[1732360323717,0.2123367,255.95,255.81,23.886]
[1732360328933,0.2123367,255.95,255.83,3.886]
[1732360329623,15.3451,255.96,255.82,20.0]
[1732360329814,15.3451,255.96,255.83,3.886]
[1732360333128,15.3451,255.96,255.84,23.776884]
[1732360333429,15.3451,255.96,255.86,27.662884]
[1732360333636,15.3451,255.96,255.86,3.886]
[1732360335128,15.3451,255.96,255.82,20.0]
[1732360335431,0.2123367,255.95,255.82,20.0]
[1732360336029,0.2123367,255.95,255.82,23.886]
[1732360342519,23.9892207,255.95,255.82,23.886]
[1732360345526,0.2123367,255.95,255.82,23.886]
[1732360358157,0.2123367,255.95,255.82,20.0]
[1732360362349,15.3451,255.96,255.82,20.0]
[1732360362735,0.2123367,255.95,255.82,20.0]
[1732360376232,15.3451,255.96,255.82,20.0]
[1732360376439,0.2123367,255.95,255.82,20.0]
[1732360376734,15.3451,255.96,255.82,20.0]
[1732360376951,15.3451,255.96,255.82,23.886]
[1732360377737,15.3451,255.96,255.82,29.9983336]
[1732360378657,15.3451,255.96,255.82,26.1123336]
[1732360379540,15.3451,255.96,255.84,20.0]
[1732360388673,0.2123367,255.95,255.83,20.0]
[1732360390152,15.3451,255.96,255.83,20.0]
[1732360390355,15.3451,255.96,255.85,20.0]
[1732360392358,0.2123367,255.95,255.85,20.0]
[1732360396258,6.3611,255.94,255.85,20.0]
[1732360396459,0.2123367,255.93,255.85,20.0]
[1732360396660,0.2123367,255.93,255.91,20.0]
[1732360397063,0.2123367,255.93,255.85,20.0]
[1732360398384,0.2123367,255.93,255.86,3.886]
[1732360400161,0.2123367,255.93,255.91,312.0]
[1732360400369,15.3451,255.92,255.91,332.0]
[1732360403185,15.3451,255.92,255.85,20.0]
[1732360403363,0.2123367,255.93,255.86,3.886]
[1732360403681,15.3451,255.92,255.85,25.47901768]
[1732360404474,15.3451,255.92,255.86,3.886]
[1732360404671,15.3451,255.92,255.85,25.47901768]
[1732360406185,15.3451,255.92,255.91,332.0]
[1732360406775,0.2123367,255.93,255.91,332.0]
[1732360407186,15.5574367,255.93,255.86,20.0]
[1732360407388,0.2123367,255.93,255.86,20.0]
[1732360410170,0.2123367,255.93,255.92,312.0]
[1732360410375,21.918537,255.94,255.92,312.0]
[1732360410583,21.918537,255.94,255.86,20.0]
[1732360410775,0.2123367,255.93,255.86,20.0]
[1732360413585,0.2123367,255.93,255.92,312.0]
[1732360413783,21.918537,255.94,255.92,312.0]
[1732360414199,21.918537,255.94,255.86,20.0]
[1732360414378,0.2123367,255.93,255.86,20.0]
[1732360417296,0.2123367,255.93,255.92,312.0]
[1732360417604,21.918537,255.94,255.92,312.0]
[1732360417772,21.918537,255.94,255.86,20.0]
[1732360417975,0.2123367,255.93,255.86,20.0]
[1732360420679,0.2123367,255.93,255.92,312.0]
[1732360420876,21.918537,255.94,255.92,312.0]
[1732360421176,23.9892207,255.93,255.81,20.0]
[1732360421378,23.9892207,255.93,255.8,23.911]
[1732360421575,23.9892207,255.93,255.8,29.39001768]
[1732360422189,23.9892207,255.93,255.82,20.0]
[1732360422511,23.9892207,255.93,255.82,25.47901768]
[1732360422886,0.2123367,255.93,255.84,20.0]
[1732360423090,0.2123367,255.93,255.86,20.0]
[1732360423982,0.2123367,255.93,255.92,312.0]
[1732360424199,21.918537,255.94,255.92,312.0]
[1732360428386,21.918537,255.94,255.86,20.0]
[1732360428583,0.2123367,255.93,255.86,20.0]
[1732360431299,0.2123367,255.93,255.92,312.0]
[1732360431503,21.918537,255.94,255.92,312.0]
[1732360431810,21.918537,255.94,255.86,20.0]
[1732360431997,0.2123367,255.93,255.86,20.0]
[1732360435003,0.2123367,255.93,255.92,312.0]
[1732360435205,10.0,255.86,255.77,6.1123336]
[1732360435509,23.776884,255.79,255.7,44.63170877]
[1732360435711,0.2123367,255.78,255.7,44.63170877]
[1732360438109,0.2123367,255.78,255.71,20.0]
[1732360438313,23.9892207,255.82,255.71,20.0]
[1732360445802,23.776884,255.8,255.71,20.0]
[1732360446006,0.2123367,255.79,255.71,20.0]
[1732360448320,0.2123367,255.79,255.71,332.0]
[1732360448503,0.2123367,255.79,255.71,20.0]
[1732360465317,0.2123367,255.79,255.71,332.0]
[1732360465520,23.9892207,255.82,255.71,332.0]
[1732360467230,23.9892207,255.82,255.71,20.0]
[1732360472145,0.2123367,255.82,255.71,20.0]
[1732360475118,0.2123367,255.84,255.72,3.886]
[1732360475319,0.2123367,255.84,255.71,20.0]
[1732360475636,0.2123367,255.84,255.71,25.51202766]
[1732360476150,0.2123367,255.84,255.72,3.886]
[1732360477150,0.2123367,255.84,255.71,25.51202766]
[1732360477926,0.2123367,255.84,255.73,20.0]
[1732360479647,6.2206,255.83,255.73,20.0]
[1732360479952,0.2123367,255.82,255.73,20.0]
[1732360483448,0.2123367,255.82,255.72,20.0]
[1732360483654,0.2123367,255.82,255.71,20.0]
[1732360486230,0.2123367,255.82,255.71,332.0]
[1732360486633,0.2123367,255.82,255.71,337.43955837]
[1732360486837,0.2123367,255.82,255.71,25.43955837]
[1732360487035,15.4893,255.81,255.71,25.43955837]
[1732360487245,0.2123367,255.8,255.71,25.43955837]
[1732360488443,0.2123367,255.8,255.71,20.0]
[1732360494051,0.2123367,255.8,255.71,332.0]
[1732360498963,0.2123367,255.8,255.72,3.886]
[1732360501130,0.2123367,255.8,255.71,332.0]
[1732360501355,0.2123367,255.8,255.71,20.0]
[1732360504336,0.2123367,255.8,255.71,332.0]
[1732360505141,0.2123367,255.8,255.71,20.0]
[1732360507339,0.2123367,255.8,255.7,44.63170877]
[1732360507340,0.2123367,255.83,255.73,20.0]
[1732360508161,0.2123367,255.83,255.73,332.0]
[1732360508537,0.2123367,255.84,255.73,332.0]
[1732360511953,0.2123367,255.84,255.73,20.0]
[1732360512638,0.2123367,255.84,255.71,20.0]
[1732360514061,0.2123367,255.84,255.73,20.0]
[1732360515463,0.2123367,255.84,255.71,20.0]
[1732360521872,0.2123367,255.84,255.72,23.776884]
[1732360522054,0.2123367,255.84,255.73,20.0]
[1732360524770,0.2123367,255.84,255.73,332.0]
[1732360526776,0.2123367,255.84,255.73,20.0]
[1732360528566,0.2123367,255.84,255.75,20.0]
[1732360528975,0.2123367,255.84,255.76,23.776884]
[1732360529159,0.2123367,255.84,255.77,20.0]
[1732360532573,0.2123367,255.84,255.73,20.0]
[1732360532773,0.2123367,255.84,255.74,23.776884]
[1732360532977,0.2123367,255.84,255.73,20.0]
[1732360534274,0.2123367,255.84,255.71,20.0]
[1732360534681,16.4684,255.83,255.71,20.0]
[1732360534879,0.2123367,255.82,255.71,20.0]
[1732360538864,16.4684,255.83,255.71,24.24084071]
[1732360539068,0.2123367,255.82,255.71,24.92604259]
[1732360539267,0.2123367,255.82,255.71,20.0]
[1732360540681,0.2123367,255.82,255.75,20.0]
[1732360541585,0.2123367,255.82,255.73,20.0]
[1732360541979,0.2123367,255.82,255.75,20.0]
[1732360542559,0.2123367,255.82,255.73,20.0]
[1732360542962,0.2123367,255.82,255.75,20.0]
[1732360543180,16.4684,255.83,255.75,20.0]
[1732360543181,16.4684,255.83,255.77,20.0]
[1732360543475,0.2123367,255.82,255.77,20.0]
[1732360543678,16.4684,255.83,255.77,20.0]
[1732360543863,0.2123367,255.82,255.77,20.0]
[1732360544676,16.4684,255.83,255.77,20.0]
[1732360547783,0.2123367,255.82,255.77,20.0]
[1732360551389,16.4684,255.83,255.77,20.0]
[1732360554475,15.570313,255.86,255.77,20.0]
[1732360554695,0.2123367,255.95,255.79,20.0]
[1732360554872,15.565375,255.93,255.79,20.0]
[1732360555194,0.2123367,255.92,255.79,20.0]
[1732360555396,15.565375,255.94,255.79,20.0]
[1732360555565,0.2123367,255.93,255.79,20.0]
[1732360557584,15.6214,255.92,255.79,332.0]
[1732360557894,0.2123367,255.91,255.79,332.0]
[1732360558074,0.2123367,255.91,255.79,20.0]
[1732360560967,0.2123367,255.91,255.79,332.0]
[1732360561991,0.2123367,255.91,255.81,20.0]
[1732360562495,15.6214,255.92,255.81,20.0]
[1732360562699,15.6214,255.92,255.8,20.0]
[1732360563295,15.6214,255.92,255.79,20.0]
[1732360564005,15.6214,255.92,255.81,20.0]
[1732360564507,15.6214,255.92,255.83,20.0]
[1732360564708,15.6214,255.92,255.85,20.0]
[1732360577982,15.6214,255.92,255.85,332.0]
[1732360578402,15.6214,255.92,255.85,20.0]
[1732360578599,20.94043123,255.92,255.85,20.0]
[1732360578807,5.31903123,255.86,255.7,44.63170877]
[1732360579009,15.0166,255.84,255.7,44.63170877]
[1732360579199,0.2123367,255.83,255.7,44.63170877]
[1732360579396,15.2289367,255.84,255.71,5.58569983]
[1732360579611,15.0166,255.84,255.71,11.22282942]
[1732360580094,15.0166,255.84,255.72,20.0]
[1732360580293,15.0166,255.84,255.73,5.58569983]
[1732360581005,15.0166,255.84,255.74,23.776884]
[1732360581419,15.0166,255.84,255.73,317.58569983]
[1732360581796,15.0166,255.84,255.74,20.0]
[1732360582913,15.0166,255.84,255.76,20.0]
[1732360583099,15.0166,255.84,255.78,20.0]
[1732360584515,15.0166,255.84,255.8,20.0]
[1732360584820,15.0166,255.84,255.81,23.776884]
[1732360584992,15.0166,255.84,255.8,20.0]
[1732360587495,15.0166,255.84,255.82,20.0]
[1732360588206,15.0166,255.84,255.8,20.0]
[1732360588394,15.0166,255.84,255.81,23.776884]
[1732360588595,15.0166,255.84,255.82,20.0]
[1732360589011,15.0166,255.84,255.74,20.0]
[1732360589921,15.0166,255.84,255.76,20.0]
[1732360590101,15.0166,255.84,255.78,20.0]
[1732360590630,15.0166,255.84,255.76,20.0]
[1732360591605,15.0166,255.84,255.78,20.0]
[1732360591798,15.0166,255.84,255.79,23.776884]
[1732360592021,15.0166,255.84,255.8,20.0]
[1732360594112,15.0166,255.87,255.8,20.0]
[1732360595199,15.0166,255.87,255.82,20.0]
[1732360595606,15.0166,255.87,255.83,23.776884]
[1732360596007,15.0166,255.87,255.84,20.0]
[1732360600014,15.0166,255.87,255.85,23.776884]
[1732360600195,16.4144,255.9,255.86,20.0]
[1732360600401,31.980593,255.9,255.86,20.0]
[1732360603123,31.980593,255.9,255.74,3.887]
[1732360603124,0.2123367,255.89,255.76,20.0]
[1732360603497,31.980593,255.9,255.78,20.0]
[1732360604007,15.566193,255.9,255.78,26.17192691]
[1732360604316,0.2123367,255.95,255.8,20.0]
[1732360604624,15.7775167,255.95,255.8,20.0]
[1732360605156,5.31903123,255.86,255.71,9.9549857]
[1732360605326,0.2123367,255.85,255.69,16.1505]
[1732360605500,15.4165,255.84,255.7,50.18600946]
[1732360605820,0.2123367,255.83,255.7,44.63170877]
[1732360606899,5.31903123,255.81,255.7,44.63170877]
[1732360607097,0.2123367,255.8,255.7,44.63170877]
[1732360608121,0.2123367,255.82,255.7,44.63170877]
[1732360608499,0.2123367,255.82,255.71,23.776884]
[1732360608715,0.2123367,255.82,255.72,20.0]
[1732360609602,20.73553123,255.84,255.72,20.0]
[1732360609603,0.2123367,255.83,255.72,20.0]
[1732360609807,5.53136793,255.83,255.72,20.0]
[1732360611919,0.2123367,255.83,255.72,20.0]
[1732360615311,15.7876097,255.83,255.72,20.0]
[1732360618007,15.7876097,255.83,255.73,23.776884]
[1732360619120,15.7876097,255.83,255.75,23.776884]
[1732360619504,15.7876097,255.83,255.76,20.0]
[1732360624318,15.575273,255.83,255.76,20.0]
[1732360624822,15.575273,255.83,255.77,23.776884]
[1732360625014,15.575273,255.83,255.79,23.776884]
[1732360625215,15.575273,255.83,255.8,20.0]
[1732360625539,15.575273,255.83,255.79,23.776884]
[1732360625717,0.2123367,255.88,255.81,23.776884]
[1732360625918,15.569035,255.87,255.82,20.0]
[1732360626119,0.2123367,255.86,255.82,20.0]
[1732360626318,15.7813717,255.87,255.83,23.776884]
[1732360627935,15.7813717,255.87,255.82,20.0]
[1732360628238,15.7813717,255.87,255.77,20.0]
[1732360628418,15.7813717,255.87,255.71,23.887]
[1732360628616,15.7813717,255.87,255.74,27.663884]
[1732360629120,15.7813717,255.87,255.75,20.0]
[1732360629333,15.7813717,255.87,255.76,23.776884]
[1732360629533,15.7813717,255.87,255.77,20.0]
[1732360630527,0.2123367,255.87,255.77,20.0]
[1732360630840,0.2123367,255.88,255.79,20.0]
[1732360631041,0.2123367,255.88,255.81,20.0]
[1732360631535,0.2123367,255.88,255.83,20.0]
[1732360636040,0.2123367,255.88,255.71,20.0]
[1732360636242,0.2123367,255.88,255.73,43.776884]
[1732360636827,0.2123367,255.88,255.73,355.776884]
[1732360637047,0.2123367,255.88,255.73,359.663884]
[1732360640335,0.2123367,255.88,255.73,355.776884]
[1732360640535,0.2123367,255.88,255.73,359.663884]
[1732360642251,0.2123367,255.88,255.73,47.663884]
[1732360645330,0.2123367,255.88,255.75,20.0]
[1732360648351,0.2123367,255.88,255.74,20.0]
[1732360648730,0.2123367,255.88,255.75,3.887]
[1732360650032,0.2123367,255.88,255.74,20.0]
[1732360651254,0.2123367,255.88,255.78,43.776884]
[1732360653251,0.2123367,255.88,255.78,20.0]
[1732360653444,6.6370367,255.88,255.73,20.0]
[1732360653632,6.6370367,255.88,255.71,20.0]
[1732360654237,6.6370367,255.88,255.71,23.887]
[1732360654757,6.6370367,255.88,255.77,20.0]
[1732360655059,6.6370367,255.88,255.75,20.0]
[1732360655357,6.6370367,255.88,255.76,23.776884]
[1732360655650,6.6370367,255.88,255.78,23.776884]
[1732360656155,6.6370367,255.88,255.81,20.0]
[1732360659461,6.6370367,255.88,255.82,23.776884]
[1732360659953,6.6370367,255.88,255.71,20.0]
[1732360661353,6.6370367,255.88,255.73,20.0]
[1732360661744,6.6370367,255.88,255.74,23.776884]
[1732360662055,6.6370367,255.88,255.76,23.776884]
[1732360662247,6.6370367,255.88,255.77,20.0]
[1732360662440,6.6370367,255.88,255.76,23.776884]
[1732360662751,6.6370367,255.88,255.77,20.0]
[1732360670442,6.6370367,255.88,255.79,20.0]
[1732360671039,6.6370367,255.88,255.8,23.776884]
[1732360673839,6.6370367,255.88,255.74,20.0]
[1732360674037,6.6370367,255.88,255.75,23.776884]
[1732360674244,6.6370367,255.88,255.78,20.0]
[1732360681340,6.6370367,255.88,255.8,20.0]
[1732360686357,6.6370367,255.88,255.74,23.776884]
[1732360686541,6.6370367,255.88,255.77,20.0]
[1732360686862,6.6370367,255.88,255.78,23.776884]
[1732360687051,6.6370367,255.88,255.79,20.0]
[1732360690953,6.6370367,255.88,255.71,20.0]
[1732360691670,6.6370367,255.88,255.7,48.51870877]
[1732360691671,0.2123367,255.88,255.73,20.0]
[1732360691878,6.006,255.9,255.73,20.0]
[1732360692175,22.02466793,255.89,255.73,20.0]
[1732360692468,22.02466793,255.89,255.72,23.776884]
[1732360692672,22.02466793,255.89,255.74,23.776884]
[1732360693057,22.02466793,255.89,255.75,20.0]
[1732360693252,22.02466793,255.89,255.77,20.0]
[1732360694581,16.7056367,255.89,255.77,20.0]
[1732360694759,22.02466793,255.89,255.77,20.0]
[1732360695371,16.7056367,255.89,255.77,20.0]
[1732360695578,16.7056367,255.89,255.78,23.776884]
[1732360696477,22.02466793,255.89,255.78,23.776884]
[1732360698862,16.7056367,255.89,255.78,23.776884]
[1732360699084,22.02466793,255.89,255.78,23.776884]
[1732360700382,16.7056367,255.89,255.78,23.776884]
[1732360705987,32.2776107,255.89,255.78,23.776884]
[1732360710363,5.31903123,255.88,255.73,20.0]
[1732360710569,0.2123367,255.87,255.73,20.0]
[1732360710786,16.6069,255.86,255.73,20.0]
[1732360710996,0.2123367,255.85,255.73,20.0]
[1732360711172,0.2123367,255.85,255.71,20.0]
[1732360712470,11.47293123,255.84,255.71,23.776884]
[1732360712673,0.2123367,255.83,255.7,44.63170877]
[1732360713362,16.6069,255.82,255.7,44.63170877]
[1732360713578,0.2123367,255.81,255.7,44.63170877]